[Event "Titled Tuesday Blitz July 25 Late 2023"]
[White "DampFalcon"]
[Black "Salik, Serkan"]
[BlackFideId "30952492"]
[WhiteElo "2393"]
[BlackElo "2607"]
[Result "0-1"]
[Round "4"]
[TimeControl "180+2"]
[Date "2023.07.25"]
[WhiteClock "0:00:01"]
[BlackClock "0:01:24"]
[Board "80"]

1. e4 {[%clk 0:03:00]}  e5 {[%clk 0:02:58]} 2. Nf3 {[%clk 0:02:58]}  Nf6 {[%clk 0:02:57]} 3. Nc3 {[%clk 0:02:58]}  d6 {[%clk 0:02:57]} 4. Bc4 {[%clk 0:02:58]}  Be7 {[%clk 0:02:56]} 5. d3 {[%clk 0:02:57]}  O-O {[%clk 0:02:57]} 6. O-O {[%clk 0:02:57]}  c6 {[%clk 0:02:55]} 7. Bg5 {[%clk 0:02:51]}  h6 {[%clk 0:02:46]} 8. Bxf6 {[%clk 0:02:48]}  Bxf6 {[%clk 0:02:45]} 9. d4 {[%clk 0:02:48]}  Bg4 {[%clk 0:02:41]} 10. dxe5 {[%clk 0:02:31]}  dxe5 {[%clk 0:02:42]} 11. Be2 {[%clk 0:02:22]}  Qc7 {[%clk 0:02:36]} 12. h3 {[%clk 0:02:21]}  Be6 {[%clk 0:02:35]} 13. Qc1 {[%clk 0:01:58]}  Nd7 {[%clk 0:02:31]} 14. Qe3 {[%clk 0:01:57]}  Qb6 {[%clk 0:02:30]} 15. Qxb6 {[%clk 0:01:54]}  axb6 {[%clk 0:02:31]} 16. b3 {[%clk 0:01:42]}  b5 {[%clk 0:02:24]} 17. a4 {[%clk 0:01:37]}  bxa4 {[%clk 0:02:14]} 18. Nxa4 {[%clk 0:01:18]}  b5 {[%clk 0:02:12]} 19. Nc3 {[%clk 0:01:14]}  Nc5 {[%clk 0:02:09]} 20. Nd2 {[%clk 0:00:43]}  Rfd8 {[%clk 0:01:59]} 21. Rxa8 {[%clk 0:00:22]}  Rxa8 {[%clk 0:02:00]} 22. Rc1 {[%clk 0:00:15]}  Bg5 {[%clk 0:01:56]} 23. Rd1 {[%clk 0:00:10]}  Bxd2 {[%clk 0:01:47]} 24. Rxd2 {[%clk 0:00:10]}  b4 {[%clk 0:01:48]} 25. Na4 {[%clk 0:00:08]}  Nxa4 {[%clk 0:01:39]} 26. bxa4 {[%clk 0:00:08]}  Rxa4 {[%clk 0:01:40]} 27. Rd6 {[%clk 0:00:08]}  Ra2 {[%clk 0:01:35]} 28. Rxc6 {[%clk 0:00:06]}  b3 {[%clk 0:01:35]} 29. cxb3 {[%clk 0:00:01]}  Rxe2 {[%clk 0:01:34]} 30. b4 {[%clk 0:00:02]}  Rxe4 {[%clk 0:01:34]} 31. b5 {[%clk 0:00:02]}  Rb4 {[%clk 0:01:34]} 32. b6 {[%clk 0:00:03]}  g5 {[%clk 0:01:32]} 33. Rd6 {[%clk 0:00:02]}  Kg7 {[%clk 0:01:31]} 34. Kf1 {[%clk 0:00:02]}  Rb2 {[%clk 0:01:30]} 35. Ke1 {[%clk 0:00:02]}  Kf6 {[%clk 0:01:31]} 36. Rc6 {[%clk 0:00:02]}  Ke7 {[%clk 0:01:30]} 37. Rc7+ {[%clk 0:00:02]}  Kd6 {[%clk 0:01:30]} 38. Rc1 {[%clk 0:00:01]}  Rxb6 {[%clk 0:01:29]} 39. Rd1+ {[%clk 0:00:02]}  Ke7 {[%clk 0:01:29]} 40. Rd2 {[%clk 0:00:02]}  f5 {[%clk 0:01:27]} 41. Ke2 {[%clk 0:00:02]}  e4 {[%clk 0:01:27]} 42. f3 {[%clk 0:00:02]}  exf3+ {[%clk 0:01:26]} 43. Kxf3 {[%clk 0:00:02]}  Rb3+ {[%clk 0:01:24]} 44. Kf2 {[%clk 0:00:02]}  h5 {[%clk 0:01:24]} 45. Ra2 {[%clk 0:00:02]}  g4 {[%clk 0:01:24]} 46. Ra7+ {[%clk 0:00:03]}  Kf6 {[%clk 0:01:24]} 47. hxg4 {[%clk 0:00:03]}  hxg4 {[%clk 0:01:24]} 48. g3 {[%clk 0:00:04]}  Bd5 {[%clk 0:01:23]} 49. Ra6+ {[%clk 0:00:04]}  Ke5 {[%clk 0:01:23]} 50. Kg1 {[%clk 0:00:04]}  Rxg3+ {[%clk 0:01:23]} 51. Kh2 {[%clk 0:00:04]}  Rg2+ {[%clk 0:01:23]} 52. Kh1 {[%clk 0:00:05]}  Ra2+ {[%clk 0:01:23]} 53. Kg1 {[%clk 0:00:01]}  Rxa6 {[%clk 0:01:24]} 0-1


[Site "https://www.chess.com"]

[Event "Titled Tuesday Blitz July 25 Late 2023"]
[White "Yu, Jennifer"]
[Black "Piesik, Piotr"]
[WhiteFideId "2078341"]
[BlackFideId "1136194"]
[WhiteElo "2362"]
[BlackElo "2601"]
[Result "0-1"]
[Round "4"]
[TimeControl "180+2"]
[Date "2023.07.25"]
[WhiteClock "0:00:03"]
[BlackClock "0:01:03"]
[Board "82"]

1. c4 {[%clk 0:03:00]}  g6 {[%clk 0:02:57]} 2. Nc3 {[%clk 0:02:59]}  Bg7 {[%clk 0:02:58]} 3. g3 {[%clk 0:02:58]}  Nc6 {[%clk 0:02:57]} 4. Bg2 {[%clk 0:02:58]}  e5 {[%clk 0:02:56]} 5. Nf3 {[%clk 0:02:58]}  d6 {[%clk 0:02:56]} 6. d3 {[%clk 0:02:57]}  f5 {[%clk 0:02:57]} 7. e4 {[%clk 0:02:54]}  Nf6 {[%clk 0:02:57]} 8. O-O {[%clk 0:02:46]}  O-O {[%clk 0:02:56]} 9. Bg5 {[%clk 0:02:36]}  h6 {[%clk 0:02:56]} 10. Bxf6 {[%clk 0:02:36]}  Qxf6 {[%clk 0:02:57]} 11. Nd5 {[%clk 0:02:35]}  Qf7 {[%clk 0:02:57]} 12. b4 {[%clk 0:02:29]}  f4 {[%clk 0:02:53]} 13. b5 {[%clk 0:02:20]}  Nd8 {[%clk 0:02:52]} 14. d4 {[%clk 0:01:57]}  c6 {[%clk 0:02:47]} 15. bxc6 {[%clk 0:01:52]}  bxc6 {[%clk 0:02:47]} 16. Nc3 {[%clk 0:01:41]}  Qxc4 {[%clk 0:02:47]} 17. Rc1 {[%clk 0:01:41]}  exd4 {[%clk 0:02:40]} 18. Nd5 {[%clk 0:01:40]}  Qxa2 {[%clk 0:02:39]} 19. Ne7+ {[%clk 0:01:35]}  Kh7 {[%clk 0:02:39]} 20. gxf4 {[%clk 0:01:21]}  Rxf4 {[%clk 0:02:29]} 21. Nxd4 {[%clk 0:01:19]}  Bg4 {[%clk 0:02:15]} 22. Qd3 {[%clk 0:01:15]}  Be5 {[%clk 0:02:01]} 23. Ndxc6 {[%clk 0:01:06]}  Nxc6 {[%clk 0:02:00]} 24. Rxc6 {[%clk 0:01:07]}  Rf7 {[%clk 0:01:34]} 25. Qd5 {[%clk 0:00:33]}  Be6 {[%clk 0:01:19]} 26. Qxa2 {[%clk 0:00:32]}  Bxa2 {[%clk 0:01:20]} 27. Nd5 {[%clk 0:00:30]}  a5 {[%clk 0:01:18]} 28. f4 {[%clk 0:00:25]}  Bd4+ {[%clk 0:01:18]} 29. Kh1 {[%clk 0:00:26]}  Bxd5 {[%clk 0:01:13]} 30. exd5 {[%clk 0:00:26]}  Bc5 {[%clk 0:01:14]} 31. Be4 {[%clk 0:00:18]}  a4 {[%clk 0:01:03]} 32. f5 {[%clk 0:00:13]}  gxf5 {[%clk 0:01:03]} 33. Rxf5 {[%clk 0:00:13]}  Rxf5 {[%clk 0:01:03]} 34. Bxf5+ {[%clk 0:00:14]}  Kg7 {[%clk 0:01:04]} 35. Rc7+ {[%clk 0:00:05]}  Kf6 {[%clk 0:01:03]} 36. Be6 {[%clk 0:00:04]}  a3 {[%clk 0:01:03]} 37. Rf7+ {[%clk 0:00:04]}  Ke5 {[%clk 0:01:03]} 38. Rf1 {[%clk 0:00:03]}  a2 {[%clk 0:01:03]} 0-1


[Site "https://www.chess.com"]

[Event "Titled Tuesday Blitz July 25 Late 2023"]
[White "Sala, Giulia"]
[Black "Sivakumar, Shaaketh"]
[WhiteFideId "2840451"]
[BlackFideId "30940176"]
[WhiteElo "2325"]
[BlackElo "2593"]
[Result "0-1"]
[Round "4"]
[TimeControl "180+2"]
[Date "2023.07.25"]
[WhiteClock "0:01:20"]
[BlackClock "0:01:46"]
[Board "84"]

1. e4 {[%clk 0:03:00]}  e6 {[%clk 0:03:00]} 2. d4 {[%clk 0:02:58]}  d5 {[%clk 0:03:00]} 3. exd5 {[%clk 0:02:53]}  exd5 {[%clk 0:03:00]} 4. Bd3 {[%clk 0:02:52]}  Nc6 {[%clk 0:03:00]} 5. c3 {[%clk 0:02:52]}  Bd6 {[%clk 0:03:00]} 6. Nf3 {[%clk 0:02:52]}  Bg4 {[%clk 0:03:00]} 7. O-O {[%clk 0:02:52]}  Nge7 {[%clk 0:03:00]} 8. h3 {[%clk 0:02:52]}  Bh5 {[%clk 0:03:00]} 9. Re1 {[%clk 0:02:52]}  Qd7 {[%clk 0:03:00]} 10. Nbd2 {[%clk 0:02:46]}  O-O-O {[%clk 0:02:59]} 11. a4 {[%clk 0:02:46]}  f6 {[%clk 0:02:59]} 12. a5 {[%clk 0:02:45]}  g5 {[%clk 0:02:58]} 13. Qc2 {[%clk 0:02:41]}  g4 {[%clk 0:02:55]} 14. hxg4 {[%clk 0:02:32]}  Bxg4 {[%clk 0:02:56]} 15. b4 {[%clk 0:02:30]}  Rdg8 {[%clk 0:02:55]} 16. b5 {[%clk 0:02:30]}  Nd8 {[%clk 0:02:56]} 17. b6 {[%clk 0:02:27]}  a6 {[%clk 0:02:39]} 18. bxc7 {[%clk 0:02:25]}  Bxc7 {[%clk 0:02:40]} 19. Be2 {[%clk 0:02:06]}  Ne6 {[%clk 0:02:29]} 20. Nb3 {[%clk 0:02:03]}  Rg6 {[%clk 0:02:19]} 21. Nh4 {[%clk 0:01:54]}  Rg7 {[%clk 0:02:08]} 22. Bxg4 {[%clk 0:01:53]}  Rxg4 {[%clk 0:02:09]} 23. Qe2 {[%clk 0:01:52]}  Re4 {[%clk 0:02:00]} 24. Qd1 {[%clk 0:01:48]}  Rxh4 {[%clk 0:01:58]} 25. Nc5 {[%clk 0:01:40]}  Nxc5 {[%clk 0:01:57]} 26. dxc5 {[%clk 0:01:41]}  Rg8 {[%clk 0:01:55]} 27. g3 {[%clk 0:01:38]}  Qh3 {[%clk 0:01:52]} 28. Qf3 {[%clk 0:01:34]}  Bxg3 {[%clk 0:01:53]} 29. Rxe7 {[%clk 0:01:26]}  Bh2+ {[%clk 0:01:45]} 30. Kh1 {[%clk 0:01:20]}  Rg1# {[%clk 0:01:46]} 0-1


[Site "https://www.chess.com"]

[Event "Titled Tuesday Blitz July 25 Late 2023"]
[White "Barwinska, Ewa"]
[Black "Medina Paz, Miguel"]
[WhiteFideId "21833761"]
[BlackFideId "7300379"]
[WhiteElo "2314"]
[BlackElo "2590"]
[Result "0-1"]
[Round "4"]
[TimeControl "180+2"]
[Date "2023.07.25"]
[WhiteClock "0:00:02"]
[BlackClock "0:00:37"]
[Board "85"]

1. e4 {[%clk 0:02:59]}  e6 {[%clk 0:03:00]} 2. d4 {[%clk 0:02:58]}  d5 {[%clk 0:03:01]} 3. Nc3 {[%clk 0:02:56]}  Bb4 {[%clk 0:03:00]} 4. a3 {[%clk 0:02:54]}  Bxc3+ {[%clk 0:02:59]} 5. bxc3 {[%clk 0:02:55]}  Ne7 {[%clk 0:02:59]} 6. Qg4 {[%clk 0:02:49]}  O-O {[%clk 0:02:57]} 7. Bd3 {[%clk 0:02:38]}  e5 {[%clk 0:02:54]} 8. Qg3 {[%clk 0:02:29]}  dxe4 {[%clk 0:02:51]} 9. Bxe4 {[%clk 0:02:19]}  Bf5 {[%clk 0:02:44]} 10. Bxb7 {[%clk 0:02:00]}  Nbc6 {[%clk 0:02:44]} 11. Bxa8 {[%clk 0:01:57]}  Qxa8 {[%clk 0:02:44]} 12. Ne2 {[%clk 0:01:52]}  Bxc2 {[%clk 0:02:41]} 13. dxe5 {[%clk 0:01:40]}  Nf5 {[%clk 0:02:37]} 14. Qf4 {[%clk 0:01:32]}  Re8 {[%clk 0:02:26]} 15. O-O {[%clk 0:01:31]}  Nxe5 {[%clk 0:02:24]} 16. Ng3 {[%clk 0:01:25]}  Ng6 {[%clk 0:02:20]} 17. Qxc7 {[%clk 0:01:17]}  Nfh4 {[%clk 0:02:08]} 18. f3 {[%clk 0:01:11]}  Bd3 {[%clk 0:02:02]} 19. Rd1 {[%clk 0:01:01]}  Bc2 {[%clk 0:02:01]} 20. Rf1 {[%clk 0:01:00]}  Qd5 {[%clk 0:01:50]} 21. Bf4 {[%clk 0:00:32]}  h6 {[%clk 0:01:46]} 22. Rae1 {[%clk 0:00:30]}  Re6 {[%clk 0:01:40]} 23. Rxe6 {[%clk 0:00:29]}  Qxe6 {[%clk 0:01:40]} 24. Qd6 {[%clk 0:00:09]}  Qc4 {[%clk 0:01:38]} 25. Be3 {[%clk 0:00:08]}  Bd3 {[%clk 0:01:33]} 26. Re1 {[%clk 0:00:07]}  Qa2 {[%clk 0:01:32]} 27. Bf2 {[%clk 0:00:04]}  Nxg2 {[%clk 0:01:30]} 28. Kxg2 {[%clk 0:00:04]}  Nh4+ {[%clk 0:01:30]} 29. Kg1 {[%clk 0:00:03]}  Nxf3+ {[%clk 0:01:30]} 30. Kh1 {[%clk 0:00:03]}  Nxe1 {[%clk 0:01:29]} 31. Qd8+ {[%clk 0:00:02]}  Kh7 {[%clk 0:01:27]} 32. Qd4 {[%clk 0:00:03]}  Qe6 {[%clk 0:01:24]} 33. Bxe1 {[%clk 0:00:02]}  Qxe1+ {[%clk 0:01:23]} 34. Kg2 {[%clk 0:00:03]}  Bg6 {[%clk 0:01:22]} 35. Qf2 {[%clk 0:00:03]}  Qe6 {[%clk 0:01:21]} 36. Qxa7 {[%clk 0:00:03]}  Qa2+ {[%clk 0:01:20]} 37. Kh3 {[%clk 0:00:02]}  f5 {[%clk 0:01:19]} 38. Qd4 {[%clk 0:00:02]}  Qxa3 {[%clk 0:01:17]} 39. Ne2 {[%clk 0:00:02]}  Bh5 {[%clk 0:01:11]} 40. Nf4 {[%clk 0:00:02]}  Bg4+ {[%clk 0:01:11]} 41. Kg3 {[%clk 0:00:03]}  Qc1 {[%clk 0:01:08]} 42. h3 {[%clk 0:00:03]}  Bd1 {[%clk 0:01:02]} 43. Qd3 {[%clk 0:00:02]}  Bc2 {[%clk 0:01:00]} 44. Qf3 {[%clk 0:00:01]}  Qg1+ {[%clk 0:00:58]} 45. Ng2 {[%clk 0:00:02]}  Be4 {[%clk 0:00:57]} 46. Qf2 {[%clk 0:00:02]}  Qc1 {[%clk 0:00:56]} 47. Nh4 {[%clk 0:00:02]}  Qg5+ {[%clk 0:00:53]} 48. Kh2 {[%clk 0:00:02]}  f4 {[%clk 0:00:54]} 49. Nf3 {[%clk 0:00:02]}  Qd5 {[%clk 0:00:51]} 50. Nd4 {[%clk 0:00:02]}  g5 {[%clk 0:00:50]} 51. h4 {[%clk 0:00:02]}  Kg6 {[%clk 0:00:45]} 52. hxg5 {[%clk 0:00:02]}  hxg5 {[%clk 0:00:46]} 53. Qg1 {[%clk 0:00:03]}  Qd8 {[%clk 0:00:41]} 54. Qg4 {[%clk 0:00:03]}  Qh8+ {[%clk 0:00:41]} 55. Kg1 {[%clk 0:00:04]}  Qh1+ {[%clk 0:00:40]} 56. Kf2 {[%clk 0:00:05]}  Qh2+ {[%clk 0:00:41]} 57. Ke1 {[%clk 0:00:04]}  Qh4+ {[%clk 0:00:38]} 58. Qxh4 {[%clk 0:00:04]}  gxh4 {[%clk 0:00:38]} 59. Kf2 {[%clk 0:00:05]}  Kg5 {[%clk 0:00:37]} 60. Ne2 {[%clk 0:00:05]}  Kg4 {[%clk 0:00:37]} 61. Ng1 {[%clk 0:00:05]}  h3 {[%clk 0:00:37]} 62. Ne2 {[%clk 0:00:02]}  h2 {[%clk 0:00:37]} 0-1


[Site "https://www.chess.com"]

[Event "Titled Tuesday Blitz July 25 Late 2023"]
[White "Hajiyev, Kanan"]
[Black "Boder, Jan"]
[WhiteFideId "13404148"]
[BlackFideId "16243226"]
[WhiteElo "2585"]
[BlackElo "2308"]
[Result "1-0"]
[Round "4"]
[TimeControl "180+2"]
[Date "2023.07.25"]
[WhiteClock "0:01:49"]
[BlackClock "0:00:14"]
[Board "87"]

1. d4 {[%clk 0:03:00]}  Nf6 {[%clk 0:02:58]} 2. Nf3 {[%clk 0:03:01]}  d5 {[%clk 0:02:55]} 3. c4 {[%clk 0:03:02]}  e6 {[%clk 0:02:54]} 4. cxd5 {[%clk 0:03:03]}  exd5 {[%clk 0:02:54]} 5. Nc3 {[%clk 0:03:04]}  c6 {[%clk 0:02:53]} 6. Bg5 {[%clk 0:03:05]}  Bd6 {[%clk 0:02:52]} 7. Qc2 {[%clk 0:03:04]}  O-O {[%clk 0:02:52]} 8. e3 {[%clk 0:03:05]}  Bg4 {[%clk 0:02:49]} 9. Ne5 {[%clk 0:03:04]}  Be6 {[%clk 0:02:40]} 10. f4 {[%clk 0:03:04]}  h6 {[%clk 0:02:38]} 11. Bh4 {[%clk 0:03:04]}  Be7 {[%clk 0:02:35]} 12. Bd3 {[%clk 0:03:03]}  Ng4 {[%clk 0:01:57]} 13. Bxe7 {[%clk 0:03:02]}  Qxe7 {[%clk 0:01:58]} 14. Qe2 {[%clk 0:03:02]}  Nxe5 {[%clk 0:01:55]} 15. fxe5 {[%clk 0:02:59]}  f6 {[%clk 0:01:43]} 16. Qh5 {[%clk 0:02:40]}  f5 {[%clk 0:01:12]} 17. O-O {[%clk 0:02:37]}  Qf7 {[%clk 0:01:11]} 18. Qf3 {[%clk 0:02:09]}  Nd7 {[%clk 0:01:08]} 19. Ne2 {[%clk 0:02:05]}  g6 {[%clk 0:00:47]} 20. Nf4 {[%clk 0:02:04]}  Kg7 {[%clk 0:00:45]} 21. Qg3 {[%clk 0:02:04]}  Kh7 {[%clk 0:00:44]} 22. h4 {[%clk 0:02:03]}  Rg8 {[%clk 0:00:42]} 23. h5 {[%clk 0:01:58]}  gxh5 {[%clk 0:00:30]} 24. Qh3 {[%clk 0:01:57]}  Rg5 {[%clk 0:00:28]} 25. Nxe6 {[%clk 0:01:53]}  Qxe6 {[%clk 0:00:26]} 26. Bxf5+ {[%clk 0:01:53]}  Rxf5 {[%clk 0:00:26]} 27. Qxf5+ {[%clk 0:01:53]}  Qxf5 {[%clk 0:00:18]} 28. Rxf5 {[%clk 0:01:54]}  Kg6 {[%clk 0:00:18]} 29. Raf1 {[%clk 0:01:53]}  Rd8 {[%clk 0:00:18]} 30. Rf7 {[%clk 0:01:52]}  b6 {[%clk 0:00:17]} 31. e6 {[%clk 0:01:50]}  c5 {[%clk 0:00:14]} 32. Rxd7 {[%clk 0:01:49]} 1-0


[Site "https://www.chess.com"]

[Event "Titled Tuesday Blitz July 25 Late 2023"]
[White "Chlpik, Martin"]
[Black "Indjic, Aleksandar"]
[WhiteFideId "14923351"]
[BlackFideId "911925"]
[WhiteElo "2223"]
[BlackElo "2953"]
[Result "0-1"]
[Round "4"]
[TimeControl "180+2"]
[Date "2023.07.25"]
[WhiteClock "0:00:39"]
[BlackClock "0:02:04"]
[Board "91"]

1. d4 {[%clk 0:03:00]}  Nf6 {[%clk 0:02:58]} 2. Nc3 {[%clk 0:02:59]}  d6 {[%clk 0:02:57]} 3. e4 {[%clk 0:02:58]}  e5 {[%clk 0:02:57]} 4. dxe5 {[%clk 0:02:57]}  dxe5 {[%clk 0:02:58]} 5. Qxd8+ {[%clk 0:02:57]}  Kxd8 {[%clk 0:02:59]} 6. Bc4 {[%clk 0:02:56]}  Ke8 {[%clk 0:02:58]} 7. Bg5 {[%clk 0:02:53]}  c6 {[%clk 0:02:53]} 8. O-O-O {[%clk 0:02:51]}  Bb4 {[%clk 0:02:47]} 9. Nge2 {[%clk 0:02:45]}  Nbd7 {[%clk 0:02:46]} 10. f3 {[%clk 0:02:43]}  h6 {[%clk 0:02:45]} 11. Bd2 {[%clk 0:02:40]}  a5 {[%clk 0:02:44]} 12. Kb1 {[%clk 0:02:39]}  b5 {[%clk 0:02:43]} 13. Bd3 {[%clk 0:02:37]}  Bc5 {[%clk 0:02:43]} 14. Nc1 {[%clk 0:02:37]}  a4 {[%clk 0:02:42]} 15. a3 {[%clk 0:02:35]}  Ke7 {[%clk 0:02:42]} 16. Rhe1 {[%clk 0:02:35]}  Rd8 {[%clk 0:02:39]} 17. Be3 {[%clk 0:02:35]}  Bxe3 {[%clk 0:02:38]} 18. Rxe3 {[%clk 0:02:36]}  Nc5 {[%clk 0:02:37]} 19. N1a2 {[%clk 0:02:35]}  Rd6 {[%clk 0:02:35]} 20. Nb4 {[%clk 0:02:34]}  Bb7 {[%clk 0:02:34]} 21. Be2 {[%clk 0:02:14]}  Rad8 {[%clk 0:02:32]} 22. Rxd6 {[%clk 0:02:09]}  Rxd6 {[%clk 0:02:33]} 23. Kc1 {[%clk 0:02:08]}  Nfd7 {[%clk 0:02:32]} 24. Bxb5 {[%clk 0:02:01]}  cxb5 {[%clk 0:02:30]} 25. Nxb5 {[%clk 0:02:02]}  Rb6 {[%clk 0:02:28]} 26. Nc3 {[%clk 0:02:02]}  Nf6 {[%clk 0:02:26]} 27. Re1 {[%clk 0:01:58]}  g5 {[%clk 0:02:24]} 28. Rd1 {[%clk 0:01:58]}  Rd6 {[%clk 0:02:24]} 29. Nd3 {[%clk 0:01:45]}  Nxd3+ {[%clk 0:02:21]} 30. Rxd3 {[%clk 0:01:42]}  Rxd3 {[%clk 0:02:21]} 31. cxd3 {[%clk 0:01:41]}  Bc6 {[%clk 0:02:21]} 32. Ne2 {[%clk 0:01:35]}  Nh5 {[%clk 0:02:18]} 33. d4 {[%clk 0:01:34]}  f6 {[%clk 0:02:17]} 34. d5 {[%clk 0:01:24]}  Bd7 {[%clk 0:02:16]} 35. g3 {[%clk 0:01:17]}  Kd6 {[%clk 0:02:16]} 36. Kd2 {[%clk 0:01:16]}  Kc5 {[%clk 0:02:16]} 37. Kc3 {[%clk 0:01:15]}  Ng7 {[%clk 0:02:13]} 38. Nc1 {[%clk 0:01:13]}  Bb5 {[%clk 0:02:13]} 39. Na2 {[%clk 0:01:12]}  Ne8 {[%clk 0:02:11]} 40. Nb4 {[%clk 0:01:12]}  Nd6 {[%clk 0:02:11]} 41. b3 {[%clk 0:01:11]}  axb3 {[%clk 0:02:11]} 42. Kxb3 {[%clk 0:01:12]}  Be2 {[%clk 0:02:11]} 43. Nc2 {[%clk 0:00:50]}  Bxf3 {[%clk 0:02:09]} 44. Ne3 {[%clk 0:00:50]}  Bxe4 {[%clk 0:02:09]} 45. Ng4 {[%clk 0:00:50]}  Bxd5+ {[%clk 0:02:09]} 46. Kc3 {[%clk 0:00:50]}  Ne4+ {[%clk 0:02:09]} 47. Kd3 {[%clk 0:00:49]}  h5 {[%clk 0:02:09]} 48. Ne3 {[%clk 0:00:46]}  Nd6 {[%clk 0:02:09]} 49. a4 {[%clk 0:00:45]}  Bb7 {[%clk 0:02:07]} 50. h4 {[%clk 0:00:44]}  gxh4 {[%clk 0:02:06]} 51. gxh4 {[%clk 0:00:43]}  f5 {[%clk 0:02:07]} 52. Nf1 {[%clk 0:00:44]}  f4 {[%clk 0:02:06]} 53. Ke2 {[%clk 0:00:41]}  e4 {[%clk 0:02:06]} 54. Nh2 {[%clk 0:00:39]}  Nf5 {[%clk 0:02:04]} 0-1


[Site "https://www.chess.com"]

[Event "Titled Tuesday Blitz July 25 Late 2023"]
[White "Gireman, Ja"]
[Black "Miladinovic, Igor"]
[WhiteFideId "5043794"]
[BlackFideId "4203380"]
[WhiteElo "2514"]
[BlackElo "2821"]
[Result "1-0"]
[Round "4"]
[TimeControl "180+2"]
[Date "2023.07.25"]
[WhiteClock "0:01:53"]
[BlackClock "0:01:52"]
[Board "92"]

1. e4 {[%clk 0:03:00]}  c6 {[%clk 0:02:59]} 2. d4 {[%clk 0:02:59]}  d5 {[%clk 0:03:00]} 3. e5 {[%clk 0:03:00]}  c5 {[%clk 0:03:00]} 4. dxc5 {[%clk 0:03:00]}  Nc6 {[%clk 0:03:01]} 5. c4 {[%clk 0:02:57]}  d4 {[%clk 0:02:46]} 6. Nf3 {[%clk 0:02:56]}  Bg4 {[%clk 0:02:45]} 7. h3 {[%clk 0:02:55]}  Bxf3 {[%clk 0:02:43]} 8. Qxf3 {[%clk 0:02:56]}  Qa5+ {[%clk 0:02:41]} 9. Bd2 {[%clk 0:02:47]}  Qxc5 {[%clk 0:02:41]} 10. e6 {[%clk 0:02:47]}  Qe5+ {[%clk 0:02:41]} 11. Be2 {[%clk 0:02:46]}  Qd6 {[%clk 0:02:40]} 12. Qxf7+ {[%clk 0:02:44]}  Kd8 {[%clk 0:02:37]} 13. Qxf8+ {[%clk 0:02:44]}  Kc7 {[%clk 0:02:37]} 14. Qxa8 {[%clk 0:02:45]}  d3 {[%clk 0:02:34]} 15. Bf3 {[%clk 0:02:33]}  Qxe6+ {[%clk 0:02:31]} 16. Kd1 {[%clk 0:02:34]}  Qxc4 {[%clk 0:02:22]} 17. Nc3 {[%clk 0:02:33]}  Nf6 {[%clk 0:02:09]} 18. Qxh8 {[%clk 0:02:29]}  Nd4 {[%clk 0:02:08]} 19. Rc1 {[%clk 0:02:11]}  Kd7 {[%clk 0:02:05]} 20. Bxb7 {[%clk 0:01:59]}  Qb4 {[%clk 0:01:58]} 21. Qc8+ {[%clk 0:01:54]}  Kd6 {[%clk 0:01:56]} 22. Bf4+ {[%clk 0:01:53]}  e5 {[%clk 0:01:52]} 23. Qf8+ {[%clk 0:01:53]} 1-0


[Site "https://www.chess.com"]

[Event "Titled Tuesday Blitz July 25 Late 2023"]
[White "Koc, Przemyslaw"]
[Black "Stoyanov, Tsvetan"]
[WhiteFideId "1109081"]
[BlackFideId "2917173"]
[WhiteElo "2503"]
[BlackElo "2772"]
[Result "0-1"]
[Round "4"]
[TimeControl "180+2"]
[Date "2023.07.25"]
[WhiteClock "0:00:14"]
[BlackClock "0:01:00"]
[Board "93"]

1. Nf3 {[%clk 0:03:00]}  d5 {[%clk 0:03:00]} 2. g3 {[%clk 0:03:00]}  c6 {[%clk 0:03:00]} 3. Bg2 {[%clk 0:03:00]}  Bg4 {[%clk 0:03:00]} 4. h3 {[%clk 0:03:00]}  Bh5 {[%clk 0:03:00]} 5. O-O {[%clk 0:02:58]}  Nd7 {[%clk 0:03:00]} 6. d3 {[%clk 0:02:58]}  Ngf6 {[%clk 0:03:00]} 7. Nbd2 {[%clk 0:02:59]}  e6 {[%clk 0:02:59]} 8. e4 {[%clk 0:02:58]}  Qc7 {[%clk 0:02:48]} 9. Qe1 {[%clk 0:02:58]}  dxe4 {[%clk 0:02:43]} 10. dxe4 {[%clk 0:02:57]}  e5 {[%clk 0:02:43]} 11. g4 {[%clk 0:02:50]}  Bg6 {[%clk 0:02:43]} 12. Nh4 {[%clk 0:02:51]}  Bc5 {[%clk 0:02:43]} 13. c3 {[%clk 0:02:38]}  a5 {[%clk 0:02:40]} 14. a4 {[%clk 0:02:38]}  O-O {[%clk 0:02:27]} 15. Nc4 {[%clk 0:02:37]}  b5 {[%clk 0:02:23]} 16. axb5 {[%clk 0:02:36]}  cxb5 {[%clk 0:02:23]} 17. Nxg6 {[%clk 0:02:36]}  hxg6 {[%clk 0:02:20]} 18. Ne3 {[%clk 0:02:36]}  Nb6 {[%clk 0:02:11]} 19. Qe2 {[%clk 0:02:21]}  Bxe3 {[%clk 0:02:05]} 20. Bxe3 {[%clk 0:02:20]}  Nc4 {[%clk 0:02:06]} 21. Bc1 {[%clk 0:02:10]}  a4 {[%clk 0:02:05]} 22. h4 {[%clk 0:02:07]}  Qd7 {[%clk 0:01:53]} 23. Bh3 {[%clk 0:02:02]}  Rad8 {[%clk 0:01:51]} 24. Kh2 {[%clk 0:01:43]}  Qd3 {[%clk 0:01:47]} 25. Qxd3 {[%clk 0:01:20]}  Rxd3 {[%clk 0:01:48]} 26. f3 {[%clk 0:01:15]}  Rfd8 {[%clk 0:01:47]} 27. Bg2 {[%clk 0:00:50]}  Nd7 {[%clk 0:01:34]} 28. Re1 {[%clk 0:00:34]}  Nc5 {[%clk 0:01:32]} 29. Kg1 {[%clk 0:00:33]}  Rd1 {[%clk 0:01:17]} 30. Bg5 {[%clk 0:00:29]}  Rxa1 {[%clk 0:01:01]} 31. Rxa1 {[%clk 0:00:29]}  f6 {[%clk 0:01:02]} 32. Bc1 {[%clk 0:00:14]}  Nb3 {[%clk 0:01:00]} 0-1


[Site "https://www.chess.com"]